Cogmind - Beta 16 @@@ ROGUE MODE // 2025.11.16 @ 22:24:36 Player: Runagate Result: Core destroyed Performance ------------- Evolutions (3) 1500 Regions Visited (11) 2200 Robots Destroyed (197) 985 Value Destroyed (9454) 9454 Prototype IDs (4) 80 Alien Tech Used (0) 0 Bonus (4501) 4501 TOTAL SCORE: 18720 Bonus ------- High Alert Combat Kills 1488 Follower Combat Kills 1089 Entered Garrisons 600 Used RIF Installer 1500 Friendly Fire -176 Cogmind --------- Core Integrity 0/700 Matter 300/300 Energy 100/100 System Corruption 23% Temperature Cool (0) Movement Core (50) Location -7/Lower Caves Parts ------- > --- POWER (1) -------- (None) > --- PROPULSION (4) --- (None) > --- UTILITY (5) ------ (None) > --- WEAPON (3) ------- (None) > --- INVENTORY (5) ---- Light Treads Heavy Assault Cannon Heavy Missile Launcher Remote Datajack Peak State ------------ > --- POWER ------------ Improved Deuterium Engine > --- PROPULSION ------- Armored Treads Armored Treads Armored Treads Advanced Treads > --- UTILITY ---------- Coolant Injector High-capacity Storage Unit Improved Light Armor Plating Relay Coupler [NC] Relay Coupler [Sentry] > --- WEAPON ----------- Light EM Pulse Cannon Railgun Heavy Mace > --- INVENTORY -------- Improved Deuterium Engine Advanced Treads Advanced Treads Advanced Treads Cooling System Cooling System Cooling System Compact Matter Pod Compact Matter Pod Seismic Detector Core Analyzer Layered Light Armor Plating Layered Light Armor Plating Relay Coupler [NC] Relay Coupler [Swarmer] Relay Coupler [Grunt] Relay Coupler [Sentry] Heavy Missile Launcher Remote Datajack Remote Datajack [Rating: 47] Favorites ----------- Power Improved Deuterium Engine Engine Improved Deuterium Engine Power Core Micro Nuclear Core Reactor Reinforced Quantum Reactor Propulsion Light Treads Treads Light Treads Wheel Compact Wheel Utility High-capacity Storage Unit Device Cooling System Storage High-capacity Storage Unit Hackware Relay Coupler [Sentry] Protection Layered Light Armor Plating Weapon Heavy Assault Rifle Energy Gun Medium Laser Energy Cannon Heavy Ion Cannon Ballistic Gun Heavy Assault Rifle Ballistic Cannon Heavy Assault Cannon Launcher Grenade Launcher Special Weapon Remote Datajack Impact Weapon Heavy Mace Piercing Weapon Lance Build | -11 -10 -9 -8 -8 -8 -8 -7 -7 -7 -7 -7 ------- Run | Yrd Mat Mat Mat Gar Mat Gar Fac Gar Fac Low Low Slots Evolved 6 | . . 2 2 . . . 2 . . . . Power . | . . . . . . . . . . . . Propulsion 2 | . . 1 1 . . . . . . . . Utility 3 | . . . 1 . . . 2 . . . . Weapon 1 | . . 1 . . . . . . . . . Parts Attached 144 | 7 13 20 2 22 4 23 25 24 4 . . Power 19 | 1 2 3 . 4 . 3 2 4 . . . Engine 15 | 1 2 3 . 3 . 2 2 2 . . . Core 2 | . . . . 1 . 1 . . . . . Reactor 2 | . . . . . . . . 2 . . . Propulsion 43 | 2 1 10 . 6 . 8 12 1 3 . . Treads 42 | 2 1 10 . 6 . 8 11 1 3 . . Leg . | . . . . . . . . . . . . Wheel 1 | . . . . . . . 1 . . . . Hover . | . . . . . . . . . . . . Flight . | . . . . . . . . . . . . Utility 38 | 2 6 2 2 2 1 6 7 10 . . . Device 13 | 1 5 1 . 1 . 1 4 . . . . Storage 4 | 1 1 1 . . 1 . . . . . . Processor . | . . . . . . . . . . . . Hackware 14 | . . . . . . 3 2 9 . . . Protection 7 | . . . 2 1 . 2 1 1 . . . Artifact . | . . . . . . . . . . . . Weapon 44 | 2 4 5 . 10 3 6 4 9 1 . . Energy Gun 12 | 1 2 5 . 2 1 . . 1 . . . Energy Cannon 4 | . . . . 1 1 . 1 . 1 . . Ballistic Gun 14 | 1 . . . 5 1 4 2 1 . . . Ballistic Cannon 4 | . . . . . . . . 4 . . . Launcher 3 | . 1 . . 1 . . 1 . . . . Special Weapon 4 | . 1 . . . . 1 . 2 . . . Impact Weapon 2 | . . . . 1 . 1 . . . . . Slashing Weapon . | . . . . . . . . . . . . Piercing Weapon 1 | . . . . . . . . 1 . . . Special Melee Weapon . | . . . . . . . . . . . . Unidentified Prototypes 2 | . . 1 . . 1 . . . . . . Parts Lost 23 | . 1 . . 5 . 3 8 3 1 . 2 Power 1 | . . . . . . 1 . . . . . Propulsion 10 | . . . . 3 . 2 3 . 1 . 1 Utility 6 | . 1 . . 1 . . 3 1 . . . Weapon 6 | . . . . 1 . . 2 2 . . 1 Highest Loss Streak 4 | . 1 . . 2 . 2 4 1 1 . 1 To Critical Strikes . | . . . . . . . . . . . . Average Backups 17 | 2 10 18 19 19 19 19 19 19 18 19 18 Power . | . 1 1 1 . . . . . 1 1 . Propulsion 2 | . . 2 3 2 1 1 3 2 . 1 1 Utility 9 | . 4 8 8 10 13 12 11 11 11 11 10 Weapon 4 | 1 4 6 7 4 4 4 3 2 3 4 3 Tool/Special . | . . . . . . . . . . . . Unused Backups 30 | . 5 1 3 6 . 1 . 3 1 . 10 Power 1 | . . . . 1 . . . . . . . Propulsion . | . . . . . . . . . . . . Utility 22 | . 3 1 2 3 . . . 3 1 . 9 Weapon 6 | . 2 . 1 2 . . . . . . 1 Tool/Special 1 | . . . . . . 1 . . . . . Average Slot Usage (%) 96 | . 100 99 99 96 100 98 94 93 91 92 88 Engine 8 | . 14 10 9 8 9 8 7 6 7 7 6 Treads 31 | . 28 32 36 34 36 34 28 30 29 30 28 Device 6 | . 14 11 9 9 9 6 4 3 . . . Storage 8 | . 14 11 9 9 9 9 7 7 7 7 6 Hackware 10 | . . . . . . 5 14 23 30 30 28 Protection 3 | . . . 8 7 9 6 6 2 . . . Energy Gun 8 | . 21 31 27 4 9 1 . 1 . . . Energy Cannon 1 | . . . . 1 9 1 . 1 5 7 6 Ballistic Gun 9 | . 2 . . 19 9 20 19 1 . . . Ballistic Cannon 1 | . . . . . . . . 4 7 7 4 Special Weapon 1 | . 3 1 . . . 2 1 2 . . . Peak Build Rating 47 | 7 10 17 23 29 33 33 46 47 46 42 42 Average Rating 28 | 6 9 15 21 26 29 28 39 42 43 42 40 On Entrance 26 | . 7 10 17 23 28 33 33 43 45 42 42 Avg Prop Armor Cover (%) 11 | . . . . . . . 11 . . . . Naked Turns 19 | . . . . . . . . . . . 19 Heaviest Build 70 | 14 30 56 63 66 68 68 69 69 70 70 70 Greatest Support 97 | 40 40 69 83 86 89 93 97 84 84 84 84 Greatest Overweight (x) 22 | 2 . . . 2 . 1 22 . 1 . . Average Overweight (x) . | . . . . . . . . . . . . Largest Inventory Capacity 20 | 8 15 20 20 20 20 20 20 20 20 20 20 Average Capacity 18 | 7 12 18 20 20 20 20 20 20 20 20 19 Most Carried 20 | 4 15 20 20 20 20 20 20 20 20 20 20 Average Carried 17 | 3 10 18 19 19 19 19 19 19 19 20 19 Final Capacity 20 | 8 15 20 20 20 20 20 20 20 20 20 5 Final Carried 20 | 4 15 20 20 19 20 20 20 19 20 20 5 Class Distribution -------------------- 18% | Bothacker-Gunner 17% | Bothacker-Tank 17% | Mutant 14% | Scavenger-Tank 12% | Bothacker-Mutant 10% | Scavenger-Gunner 3% | Gunner 3% | Tank Dominant Class ---------------- Mutant | -10/Materials Scavenger-Gunner | -9/Materials Scavenger-Tank | -8/Materials Scavenger-Tank | -8/Garrison Bothacker-Tank | -8/Materials Bothacker-Tank | -8/Garrison Bothacker-Tank | -7/Factory Bothacker-Mutant | -7/Garrison Bothacker-Gunner | -7/Factory Bothacker-Gunner | -7/Lower Caves Bothacker-Gunner | -7/Lower Caves Resources | -11 -10 -9 -8 -8 -8 -8 -7 -7 -7 -7 -7 ----------- Run | Yrd Mat Mat Mat Gar Mat Gar Fac Gar Fac Low Low Matter Collected 5909 | 363 209 342 . 966 92 778 1182 1252 484 95 146 Remotely . | . . . . . . . . . . . . Salvage Created 7142 | 361 460 1507 . 988 85 850 1801 580 298 105 107 Parts 371 | 23 30 78 . 53 4 58 86 19 9 7 4 Haulers Intercepted 5 | . 1 3 . . . . 1 . . . . Recyclers Shooed 9 | . 1 3 . . 1 . 4 . . . . Parts Field Recycled . | . . . . . . . . . . . . Retrieved Matter . | . . . . . . . . . . . . Parts Self-Destructed 13 | . . . . . . . . . . 7 6 Prevented . | . . . . . . . . . . . . Parts Restored . | . . . . . . . . . . . . Kills | -11 -10 -9 -8 -8 -8 -8 -7 -7 -7 -7 -7 ------- Run | Yrd Mat Mat Mat Gar Mat Gar Fac Gar Fac Low Low Combat Hostiles Destroyed 145 | . 13 28 . 31 1 19 27 12 8 2 4 Melee 3 | . . . . . . . . 2 . . 1 Guns 91 | . 8 24 . 24 . 14 20 1 . . . Cannons 30 | . . . . 3 1 5 3 6 7 2 3 AOE 14 | . 5 . . 4 . . 4 . 1 . . Classes Destroyed 17 | 3 5 4 . 2 . 1 1 . 1 . . Worker 9 | 4 1 1 . . . . 2 . 1 . . Builder 5 | . . 1 . . . . 4 . . . . Tunneler 9 | 9 . . . . . . . . . . . Hauler 5 | . 1 3 . . . . 1 . . . . Recycler 10 | 1 1 1 . . . . 7 . . . . Operator 3 | . 1 2 . . . . . . . . . Watcher 8 | . 1 4 . . 1 . 2 . . . . Swarmer 22 | . 6 3 . 8 . 4 . . . . 1 Cutter 2 | . . . . 2 . . . . . . . Grunt 71 | . 7 16 . 15 . 6 15 8 3 . 1 Brawler 4 | . . 1 . . . . 1 . 2 . . Duelist 4 | . . 1 . 1 . . 2 . . . . Protector 1 | . . . . . . . . . 1 . . Sentry 29 | . . 7 . 4 1 7 3 4 1 1 1 Specialist 2 | . . . . 2 . . . . . . . Hunter 3 | . . . . . . . 2 . 1 . . Programmer 9 | . . . . . . 2 4 . 1 1 1 Thug 1 | . . . . . . . . 1 . . . Best Kill Streak 8 | 3 3 7 . 8 1 7 7 2 4 1 3 Combat Bots Only 8 | . 3 3 . 8 1 7 4 2 3 1 3 Max Kills in Single Turn 4 | 1 3 2 . 3 1 2 4 1 1 1 1 Gunslinging 1 | . . 1 . 1 . 1 1 . . . . Exploded 3 | . 3 . . 3 . . 2 . 1 . . Melee 1 | . . . . . . . . 1 . . 1 Uniques/NPCs Destroyed . | . . . . . . . . . . . . Combat | -11 -10 -9 -8 -8 -8 -8 -7 -7 -7 -7 -7 -------- Run | Yrd Mat Mat Mat Gar Mat Gar Fac Gar Fac Low Low Hostile Shots Fired 1003 | . 35 110 . 187 . 107 216 161 60 19 108 Missed 303 | . 5 37 . 52 . 22 73 47 21 9 37 Hits 700 | . 30 73 . 135 . 85 143 114 39 10 71 Melee 13 | . . 2 . 7 . . 4 . . . . Projectile 687 | . 30 71 . 128 . 85 139 114 39 10 71 AOE 2 | . . . . 2 . . . . . . . Critical Strikes 23 | . 1 4 . 8 . 5 3 1 . . 1 Part Disruptions 2 | . . . . . . . 1 . . . 1 Damage Taken 9369 | . 320 935 . 1984 . 1163 1898 1617 424 121 907 Core 1196 | . 49 112 . 206 . 124 130 170 22 15 368 Absorbed by Shields 35 | . . . . 35 . . . . . . . Regen/Repaired (Parts) 166 | . . 165 . . . . 1 . . . . Core Remaining (%) 73 | 100 80 72 . . . 40 . . . . . Volleys Fired 556 | 31 44 106 . 68 4 61 95 89 39 6 13 Largest 3 | 2 2 3 . 3 3 3 3 2 2 2 2 Hottest 206 | 60 150 206 . 156 163 163 109 121 115 115 115 Shots Fired 1247 | 62 86 308 . 198 12 132 249 101 62 12 25 Gun 966 | 62 71 291 . 178 8 103 223 30 . . . Cannon 203 | . . . . 16 4 20 13 60 53 12 25 Launcher 11 | . 2 . . 4 . . 5 . . . . Special 67 | . 13 17 . . . 9 8 11 9 . . Kinetic 601 | 31 8 . . 136 4 83 223 65 32 6 13 Thermal 578 | 31 76 308 . 58 8 40 . 18 21 6 12 Explosive 11 | . 2 . . 4 . . 5 . . . . Electromagnetic 20 | . . . . . . . 13 7 . . . Robot Hit Streak 18 | 7 14 18 . 13 5 10 13 10 6 3 5 Robot Miss Streak 10 | 2 5 4 . 10 1 3 10 2 4 2 3 Penetration Max 1 | . . . . . . . . . . . 1 Secondary Targets 12 | . . 5 . 3 . 3 1 . . . . Max Gunslinging Chain 1 | . . 1 . 1 . 1 1 . . . . Shots Hit Robots 757 | 41 41 187 . 121 8 76 166 61 31 7 18 Core Hits 369 | 15 27 66 . 64 1 32 129 16 11 3 5 Critical Kills 2 | . . . . . 1 . 1 . . . . Critical Parts Destroyed 3 | . . . . . . 1 1 1 . . . Critical Strikes 28 | . 2 13 . 3 1 1 3 1 2 1 1 Burn 18 | . 2 13 . 3 . . . . . . . Meltdown 1 | . . . . . 1 . . . . . . Destroy 3 | . . . . . . 1 2 . . . . Blast 3 | . . . . . . . . . 2 1 . Corrupt 1 | . . . . . . . 1 . . . . Smash 1 | . . . . . . . . 1 . . . Impale 1 | . . . . . . . . . . . 1 Melee Attacks 58 | . . . . 13 . 4 2 30 6 . 3 Impact 41 | . . . . 13 . 4 2 22 . . . Slashing . | . . . . . . . . . . . . Piercing 17 | . . . . . . . . 8 6 . 3 Sneak Attacks 1 | . . . . . . . . 1 . . . Combat Hostiles . | . . . . . . . . . . . . Follow-up Attacks . | . . . . . . . . . . . . Damage Inflicted 16364 | 422 756 2486 . 2828 131 1438 3630 2248 1306 110 1009 Guns 9341 | 422 481 2392 . 2068 54 1003 2598 323 . . . Cannons 4209 | . . . . 155 77 432 205 1268 1176 110 786 Explosions 1745 | . 204 . . 605 . . 806 . 130 . . Melee 760 | . . . . . . . . 657 . . 103 Ramming 261 | . 47 70 . . . 3 21 . . . 120 Kinetic 8030 | 181 75 . . 1555 19 718 2598 1346 870 51 617 Thermal 5396 | 241 430 2416 . 668 112 717 . 148 436 59 169 Explosive 1615 | . 204 . . 605 . . 806 . . . . Electromagnetic 302 | . . . . . . . 205 97 . . . Impact 657 | . . . . . . . . 657 . . . Slashing . | . . . . . . . . . . . . Piercing 103 | . . . . . . . . . . . 103 Highest Corruption 23 | . . 3 . . . 3 10 10 10 11 23 Average Corruption 7 | . . 3 . . . 2 4 10 10 10 11 Corruption Purged . | . . . . . . . . . . . . Corruption Blocked . | . . . . . . . . . . . . Effects 197 | . . 3 . . . 26 30 77 19 21 21 Message Errors 30 | . . . . . . 4 5 16 3 1 1 Matter Fused 54 | . . . . . . 9 5 23 5 6 6 Heat Flow Errors 26 | . . 1 . . . 2 5 10 1 4 3 Energy Discharges 22 | . . . . . . 3 4 6 3 4 2 Parts Rejected 3 | . . . . . . 1 1 1 . . . Parts Fused 4 | . . . . . . 1 1 1 1 . . Data Loss (minor) 29 | . . . . . . 2 4 11 . 5 7 Data Loss (major) 11 | . . 2 . . . 1 1 4 2 . 1 Misfires 9 | . . . . . . 3 2 2 2 . . Alerts 4 | . . . . . . . . 1 2 1 . Misdirections 1 | . . . . . . . . 1 . . . Weapon Failures 4 | . . . . . . . 2 1 . . 1 Overload Shots . | . . . . . . . . . . . . Overflow Damage 283 | . . . . 3 11 . 1 90 58 . 120 Projectiles 198 | . . . . 3 11 . . 22 58 . 104 Explosions 14 | . . . . . . . 1 . . . 13 Melee 71 | . . . . . . . . 68 . . 3 Knockbacks 16 | . 1 . . . . . . 7 4 . 4 Impact 3 | . 1 . . . . . . 2 . . . Kinetic 12 | . . . . . . . . 5 3 . 4 Secondary 1 | . . . . . . . . . 1 . . Self-Inflicted Damage 349 | . . . . 135 . . 40 . . . 174 Shots 6 | . . . . 4 . . 1 . . . 1 Rammed 27 | . 11 9 . . . 1 6 . . . . Targets Rammed 29 | . 13 9 . . . 1 6 . . . . Kicked . | . . . . . . . . . . . . Crushed 2 | . 2 . . . . . . . . . . Highest Temperature 352 | 2 72 120 . 120 119 295 244 253 254 242 352 Average Temperature 62 | 2 37 26 . 40 43 79 72 73 73 75 134 Received Heat Transfer 2922 | . 141 399 . 615 . 396 516 555 180 18 102 Siege Activations . | . . . . . . . . . . . . Martial Activations . | . . . . . . . . . . . . Shielding Activations . | . . . . . . . . . . . . Robots Disrupted . | . . . . . . . . . . . . Combat Hostiles . | . . . . . . . . . . . . Robots Corrupted 3 | . . . . . . . . 3 . . . Combat Hostiles 3 | . . . . . . . . 3 . . . Parts Fried 6 | . . . . . . . . 6 . . . Impact Corruptions 5 | . . . . . . . . 5 . . . Robots Melted 5 | . . 4 . . 1 . . . . . . Combat Hostiles 4 | . . 4 . . . . . . . . . Parts Melted 29 | . 1 24 . . 2 2 . . . . . Heat Transferred 13440 | 550 1289 7464 . 1691 185 1144 . 333 488 74 222 Parts Sabotaged . | . . . . . . . . . . . . Parts Stolen . | . . . . . . . . . . . . Parts Stripped . | . . . . . . . . . . . . Power Chain Reactions . | . . . . . . . . . . . . Alert | -11 -10 -9 -8 -8 -8 -8 -7 -7 -7 -7 -7 ------- Run | Yrd Mat Mat Mat Gar Mat Gar Fac Gar Fac Low Low Maximum Alert Level 5 | . . 1 . 4 3 4 3 5 4 . . Low Security (%) 27 | 100 100 61 100 3 . . . . . . . Level 1 15 | . . 38 . 19 . . 40 . . . . Level 2 22 | . . . . 27 78 32 55 17 . . . Level 3 16 | . . . . 8 21 47 4 29 94 . . Level 4 12 | . . . . 40 . 19 . 18 5 . . Level 5 5 | . . . . . . . . 33 . . . High Security . | . . . . . . . . . . . . Max Security . | . . . . . . . . . . . . Peak Influence 1871 | 10 125 365 148 1471 716 1232 730 1871 1116 . . Initial 968 | . 3 21 148 63 716 455 646 508 968 . . Average 587 | 1 52 149 126 808 681 843 458 1197 978 . . Influence Increases 6945 | 70 476 859 . 1558 145 907 854 1528 408 50 90 Destroy 0b10 Robot/C 3520 | . 260 560 . 760 60 480 540 560 180 40 80 Destroy 0b10 Robot/NC 250 | 70 25 60 . . 5 . 80 . 10 . . Destroy Leader 586 | . 54 174 . 30 32 30 146 40 60 10 10 Allied During Kill 175 | . . . . 36 9 41 . 81 8 . . Successful Hack 181 | . 27 38 . 30 9 21 26 30 . . . Disable Machine 300 | . 30 15 . . 30 . 30 75 120 . . Anti-Garrison Action 1400 | . . . . 550 . 300 . 550 . . . Destroy Structure 383 | . 20 12 . 122 . 20 32 147 30 . . Lose Combat Pursuer 150 | . 60 . . 30 . 15 . 45 . . . Influence Decreases 6709 | 65 430 557 255 185 915 376 1360 408 1154 669 335 Entered New Map 3455 | . 2 30 205 35 755 246 586 218 878 407 93 Time Decay 2564 | 65 418 527 50 . 140 . 634 . 246 262 222 Lost Part 230 | . 10 . . 50 . 30 80 30 10 . 20 Lost Ally 460 | . . . . 100 20 100 60 160 20 . . Squads Dispatched 26 | . 2 6 . . 1 . 10 . 7 . . Investigation 2 | . 1 1 . . . . . . . . . Extermination 5 | . . . . . . . 4 . 1 . . Reinforcement 12 | . 1 5 . . . . 5 . 1 . . Assault 4 | . . . . . . . 1 . 3 . . Garrison 3 | . . . . . 1 . . . 2 . . Intercept . | . . . . . . . . . . . . Searches Triggered . | . . . . . . . . . . . . Construction Impeded 4 | . . 1 . . . . 3 . . . . Haulers Reinforced 1 | . . . . . . . 1 . . . . Active Scanning Responses . | . . . . . . . . . . . . Cargo Convoy Interrupts . | . . . . . . . . . . . . Stealth | -11 -10 -9 -8 -8 -8 -8 -7 -7 -7 -7 -7 --------- Run | Yrd Mat Mat Mat Gar Mat Gar Fac Gar Fac Low Low Distress Signals 5 | . 2 1 . . 1 . . . 1 . . Communications Jammed . | . . . . . . . . . . . . Distress Signals . | . . . . . . . . . . . . Times Spotted 233 | . 23 42 . 36 5 31 37 35 18 2 4 Peak Tracking Total 11 | . 5 7 . 7 2 5 5 4 11 1 3 Tactical Retreats 9 | . 3 . . 2 . 1 . 3 . . . Traps | -11 -10 -9 -8 -8 -8 -8 -7 -7 -7 -7 -7 ------- Run | Yrd Mat Mat Mat Gar Mat Gar Fac Gar Fac Low Low Traps Triggered 14 | . 1 1 . 5 . . 5 1 . . 1 Indirectly . | . . . . . . . . . . . . Trap Hack Attempts . | . . . . . . . . . . . . Triggered . | . . . . . . . . . . . . Disarmed . | . . . . . . . . . . . . Reprogrammed . | . . . . . . . . . . . . Reused . | . . . . . . . . . . . . Traps Extracted . | . . . . . . . . . . . . Installed . | . . . . . . . . . . . . Triggered . | . . . . . . . . . . . . Machines | -11 -10 -9 -8 -8 -8 -8 -7 -7 -7 -7 -7 ---------- Run | Yrd Mat Mat Mat Gar Mat Gar Fac Gar Fac Low Low Machines Disabled 37 | . 2 1 . 9 2 3 2 10 8 . . Max in Single Turn 3 | . 1 1 . 2 1 1 1 1 3 . . Garrison Access 1 | . . . . . . . . . 1 . . Garrison Relay 15 | . . . . 7 . 3 . 5 . . . Phase Generator 1 | . . . . 1 . . . . . . . Machines Repaired . | . . . . . . . . . . . . Machines Dismantled . | . . . . . . . . . . . . Machines Sabotaged . | . . . . . . . . . . . . Overloaded Fab Kills . | . . . . . . . . . . . . Hacking | -11 -10 -9 -8 -8 -8 -8 -7 -7 -7 -7 -7 --------- Run | Yrd Mat Mat Mat Gar Mat Gar Fac Gar Fac Low Low Machines Accessed 43 | . 7 10 1 4 4 3 9 4 1 . . Terminals 34 | . 6 8 . 4 2 3 7 4 . . . Fabricators . | . . . . . . . . . . . . Repair Stations 4 | . 1 2 . . 1 . . . . . . Recycling Units . | . . . . . . . . . . . . Scanalyzers 1 | . . . . . . . 1 . . . . Garrison Access 4 | . . . 1 . 1 . 1 . 1 . . Total Hacks 94 | . 16 29 3 5 7 6 17 10 1 . . Successful 49 | . 11 17 1 2 4 2 8 3 1 . . Failed 45 | . 5 12 2 3 3 4 9 7 . . . Catastrophic 7 | . . 1 . 1 1 2 1 1 . . . Database Lockouts . | . . . . . . . . . . . . Manual 57 | . 15 24 . . 6 . 12 . . . . Terminals 79 | . 15 25 . 5 4 6 14 10 . . . Fabricators . | . . . . . . . . . . . . Repair Stations 7 | . 1 4 . . 2 . . . . . . Recycling Units . | . . . . . . . . . . . . Scanalyzers 1 | . . . . . . . 1 . . . . Garrison Access 7 | . . . 3 . 1 . 2 . 1 . . Terminal Hacks 15 | . 2 5 . 2 . 2 1 3 . . . Robot Analysis 5 | . . 5 . . . . . . . . . Prototype ID Bank 1 | . 1 . . . . . . . . . . Open Door 1 | . . . . . . 1 . . . . . Emergency Access Points 3 | . . . . 1 . 1 . 1 . . . Terminal Index 1 | . 1 . . . . . . . . . . Recall Reinforcements 1 | . . . . . . . 1 . . . . Patrol Navigation 1 | . . . . . . . . 1 . . . Security Stations 2 | . . . . 1 . . . 1 . . . Fabricator Hacks . | . . . . . . . . . . . . Repair Station Hacks 4 | . . 4 . . . . . . . . . Scan Component 2 | . . 2 . . . . . . . . . Repair 2 | . . 2 . . . . . . . . . Recycling Unit Hacks . | . . . . . . . . . . . . Scanalyzer 1 | . . . . . . . 1 . . . . Retrieve Study 1 | . . . . . . . 1 . . . . Garrison Access Hacks 5 | . . . 1 . 1 . 2 . 1 . . Unlock Access 3 | . . . 1 . 1 . 1 . . . . Coupler Status 2 | . . . . . . . 1 . 1 . . Unauthorized Hacks 24 | . 9 8 . . 3 . 4 . . . . Terminals 24 | . 9 8 . . 3 . 4 . . . . Assimilate 1 | . . 1 . . . . . . . . . Botnet 5 | . 3 1 . . 1 . . . . . . Operators 2 | . 1 1 . . . . . . . . . Skim 16 | . 5 5 . . 2 . 4 . . . . Fabricators . | . . . . . . . . . . . . Repair Stations . | . . . . . . . . . . . . Recycling Units . | . . . . . . . . . . . . Scanalyzers . | . . . . . . . . . . . . Garrison Access . | . . . . . . . . . . . . Data Cores Recovered . | . . . . . . . . . . . . Used . | . . . . . . . . . . . . Hacking Detections 33 | . 5 9 . 3 4 2 5 4 1 . . Full Trace Events 4 | . . . . . 1 1 . 2 . . . Feedback Events . | . . . . . . . . . . . . Feedback Blocked . | . . . . . . . . . . . . Robot Schematics Acquired . | . . . . . . . . . . . . Robots Built . | . . . . . . . . . . . . Authchips . | . . . . . . . . . . . . Time . | . . . . . . . . . . . . Total Robot Build Rating . | . . . . . . . . . . . . Part Schematics Acquired . | . . . . . . . . . . . . Parts Built . | . . . . . . . . . . . . Authchips . | . . . . . . . . . . . . Time . | . . . . . . . . . . . . Total Part Build Rating . | . . . . . . . . . . . . Part Studies Acquired 1 | . . . . . . . 1 . . . . Parts Repaired 2 | . . 2 . . . . . . . . . Time 64 | . . 64 . . . . . . . . . Parts Recycled . | . . . . . . . . . . . . Recycled Matter . | . . . . . . . . . . . . Retrieved Matter . | . . . . . . . . . . . . Retrieved Components . | . . . . . . . . . . . . Parts Scanalyzed . | . . . . . . . . . . . . Part Schematics Acquired . | . . . . . . . . . . . . Parts Damaged . | . . . . . . . . . . . . Bothacking | -11 -10 -9 -8 -8 -8 -8 -7 -7 -7 -7 -7 ------------ Run | Yrd Mat Mat Mat Gar Mat Gar Fac Gar Fac Low Low Used RIF Installer 3 | . . . . 1 . 1 . 1 . . . Hotswap 1 | . . . . . . 1 . . . . . Watcher Feeds 1 | . . . . . . . . 1 . . . Robots Hacked 21 | . . . . . . 5 6 6 4 . . Non-combat 9 | . . . . . . . 6 . 3 . . Combat 12 | . . . . . . 5 . 6 1 . . Robot Hacks Applied 22 | . . . . . . 5 6 6 5 . . find_recycling 2 | . . . . . . . 2 . . . . amplify_resonance 8 | . . . . . . 1 2 . 5 . . formatsys_low 2 | . . . . . . . 2 . . . . formatsys_high 10 | . . . . . . 4 . 6 . . . Relay Couplers Released 55 | . . . . 26 . 10 . 17 2 . . Machine Destruction 55 | . . . . 26 . 10 . 17 2 . . Attached 12 | . . . . . . 3 1 8 . . . Fabnet Peak Effective % . | . . . . . . . . . . . . Robots Rewired 14 | . . . . 9 . 2 . 3 . . . Allies Hacked . | . . . . . . . . . . . . Hacks Repelled . | . . . . . . . . . . . . Allies | -11 -10 -9 -8 -8 -8 -8 -7 -7 -7 -7 -7 -------- Run | Yrd Mat Mat Mat Gar Mat Gar Fac Gar Fac Low Low Total Allies 30 | . . . . 9 . 6 2 13 . . . Largest Group 6 | . . . . 6 3 5 3 4 3 . . Highest-Rated Group 207 | . . . . 96 15 104 57 207 64 . . Highest-Rated Ally 80 | . . . . 16 5 31 26 80 32 . . Total Orders 4 | . . . . . . 2 2 . . . . STAY 1 | . . . . . . 1 . . . . . FOLLOW 1 | . . . . . . 1 . . . . . AID 2 | . . . . . . . 2 . . . . Ally Attacks 201 | . . . . 44 24 41 11 74 7 . . Total Damage 3283 | . . . . 524 163 579 102 1733 182 . . Kills 33 | . . . . 7 2 5 . 17 2 . . Allies Corrupted . | . . . . . . . . . . . . Allies Melted . | . . . . . . . . . . . . Intel | -11 -10 -9 -8 -8 -8 -8 -7 -7 -7 -7 -7 ------- Run | Yrd Mat Mat Mat Gar Mat Gar Fac Gar Fac Low Low Active Infowar (turns) 713 | 386 166 5 . 156 . . . . . . . Terrain 24 | . 24 . . . . . . . . . . Seismic 689 | 386 142 5 . 156 . . . . . . . Robot Analysis Total 5 | . . 5 . . . . . . . . . Derelict Logs Recovered 2 | . . . . . . . . . . 1 1 Drone Launches . | . . . . . . . . . . . . Drone Recoveries . | . . . . . . . . . . . . Exploration | -11 -10 -9 -8 -8 -8 -8 -7 -7 -7 -7 -7 ------------- Run | Yrd Mat Mat Mat Gar Mat Gar Fac Gar Fac Low Low Turns Passed 13747 | 614 1523 1848 104 2021 290 1494 2230 2060 523 568 472 Spaces Moved 6862 | 312 803 778 61 954 163 746 1171 1015 240 359 260 Core 12 | 8 . . . . . . 2 . . . 2 Treads 6849 | 304 803 778 61 954 163 746 1168 1015 240 359 258 Legs . | . . . . . . . . . . . . Wheels 1 | . . . . . . . 1 . . . . Hover . | . . . . . . . . . . . . Flight . | . . . . . . . . . . . . Fastest Speed 50 | 50 160 160 160 160 160 160 145 155 152 152 50 Average Speed 158 | 158 160 160 160 160 160 160 157 159 156 152 151 Slowest Speed 1150 | 160 160 160 160 320 160 240 1150 163 230 152 152 Overloaded Moves . | . . . . . . . . . . . . Propulsion Burnouts . | . . . . . . . . . . . . Robots Hopped . | . . . . . . . . . . . . Potential Cave-ins 3 | . 3 . . . . . . . . . . Cave-ins Triggered . | . . . . . . . . . . . . Exploration Rate (%) 54 | 17 99 85 5 94 14 77 39 96 13 58 52 Regions Visited 11 Branch Regions 2 Pre-discovered Areas 6 | . 1 5 . . . . . . . . . Known Exits Taken 4 | . . 1 1 . 1 . 1 . . . . Unknown Exits Taken 4 | 1 1 . . . . . . . 1 1 . Scrap Searched 2 | . . . . . . . . . . 1 1 Spaces Dug 10 | . 2 6 . . . . 2 . . . . Terrain Destroyed 244 | . 23 14 . 106 . . 33 10 35 7 16 Melee 2 | . . . . . . . 2 . . . . Projectile 59 | . 9 14 . . . . . 10 10 7 9 AOE 183 | . 14 . . 106 . . 31 . 25 . 7 Terrain Rammed 19 | . . . . . . . . . . . 19 Walls Destroyed . | . . . . . . . . . . . . Machines Disabled . | . . . . . . . . . . . . Actions | -11 -10 -9 -8 -8 -8 -8 -7 -7 -7 -7 -7 --------- Run | Yrd Mat Mat Mat Gar Mat Gar Fac Gar Fac Low Low Total 8510 | 367 926 1104 72 1266 184 948 1383 1288 306 366 300 Wait 443 | 14 18 154 . 65 10 69 46 51 9 2 5 Move 6848 | 311 802 777 60 952 162 744 1170 1013 239 358 260 Hop . | . . . . . . . . . . . . Pick Up 74 | 4 18 8 5 12 . 2 6 17 2 . . Fast Attach 35 | 7 . 2 . 9 . 4 6 6 1 . . Attach 19 | . 1 2 2 4 . . 6 3 . . 1 Detach 1 | . . . . . . . . 1 . . . Swap 188 | . 18 31 1 31 6 33 30 30 8 . . Drop 104 | . 12 15 4 19 2 11 14 25 2 . . Fire 556 | 31 44 106 . 68 4 61 95 89 39 6 13 Melee 58 | . . . . 13 . 4 2 30 6 . 3 Ram 18 | . . . . . . . . . . . 18 Kick . | . . . . . . . . . . . . Crush 29 | . 13 9 . . . 1 6 . . . . Escape Stasis 3 | . . . . 1 . . 2 . . . . Rewire 134 | . . . . 92 . 19 . 23 . . . Trap . | . . . . . . . . . . . . Miscellaneous . | . . . . . . . . . . . . Route ------- -11/Scrapyard -10/Materials (discovered 6 exits: *Mat x3 / [*Min x2] / [*Sub]) -9/Materials (discovered 4 exits: *Mat x3 / [*Min]) -8/Materials (discovered 2 exits: Sto / Gar) -8/Garrison (discovered 4 exits: *Mat x4) -8/Materials -8/Garrison (discovered 3 exits: *Fac x3) -7/Factory (discovered 4 exits: [*Fac x2] / [*Low] / Gar) -7/Garrison (discovered 3 exits: *Fac x3) -7/Factory -7/Lower Caves -7/Lower Caves History --------- Turn | Location | Event 7 | -11/Scrapyard | Discovered new exit (range 15) 615 | -11/Scrapyard | Entered Materials 616 | -10/Materials | Build established: Mutant 1064 | -10/Materials | Discovered new exit (range 3) 1341 | -10/Materials | Discovered new exit (range 16) 1544 | -10/Materials | Discovered new exit (range 6) 1573 | -10/Materials | Learned Storage security intel 1635 | -10/Materials | Discovered new exit (range 15) 1740 | -10/Materials | Discovered new exit (range 9) 1762 | -10/Materials | Loaded intel: 9 trap records 1805 | -10/Materials | Learned Materials stockpile data 1839 | -10/Materials | Learned location of Mines (-9) 1871 | -10/Materials | Discovered new exit (range 9) 1881 | -10/Materials | Learned Storage terminal intel 2138 | -10/Materials | Entered another Materials area 2138 | -9/Materials | Evolved 2 slots: Propulsion x1, Weapon x1 2454 | -9/Materials | Build established: Gunner 2661 | -9/Materials | Discovered new exit (range 16) 2951 | -9/Materials | Build established: Scavenger-Gunner 3053 | -9/Materials | Repaired Imp. Ion Engine 3108 | -9/Materials | Discovered new exit (range 15) 3457 | -9/Materials | Loaded intel: 48 machine locations 3476 | -9/Materials | Discovered new exit (range 16) 3709 | -9/Materials | Learned location of Storage (-8) 3746 | -9/Materials | Learned location of Zion (-6) 3794 | -9/Materials | Identified exit to Materials 3794 | -9/Materials | Learned location of 1 exit from Materials 3956 | -9/Materials | Repaired Imp. Treads 3986 | -9/Materials | Entered another Materials area 3986 | -8/Materials | Evolved 2 slots: Propulsion x1, Utility x1 3987 | -8/Materials | Identified exit to Storage 4088 | -8/Materials | Identified exit to Garrison 4090 | -8/Materials | Entered Garrison 4184 | -8/Garrison | Learned Materials security intel 4283 | -8/Garrison | Garrison Relay disabled 4436 | -8/Garrison | Triggered checkpoint 4452 | -8/Garrison | Triggered checkpoint 4494 | -8/Garrison | Triggered checkpoint 4594 | -8/Garrison | Lost 5 allies 4806 | -8/Garrison | Triggered checkpoint 4891 | -8/Garrison | Phase Generator disabled 4910 | -8/Garrison | Discovered new exit (range 8) 4920 | -8/Garrison | Triggered checkpoint 5044 | -8/Garrison | Garrison Relay disabled 5112 | -8/Garrison | Garrison Relay disabled 5130 | -8/Garrison | Garrison Relay disabled 5162 | -8/Garrison | Destroyed 8 combat bots 5193 | -8/Garrison | Garrison Relay disabled 5312 | -8/Garrison | Triggered checkpoint 5361 | -8/Garrison | Discovered new exit (range 10) 5437 | -8/Garrison | Build established: Scavenger-Tank 5502 | -8/Garrison | Triggered checkpoint 5537 | -8/Garrison | Garrison Relay disabled 5811 | -8/Garrison | Discovered new exit (range 11) 5860 | -8/Garrison | Triggered checkpoint 5907 | -8/Garrison | Discovered new exit (range 3) 6040 | -8/Garrison | Installed Relay Interface Framework 6111 | -8/Garrison | Entered Materials 6111 | -8/Materials | Accompanied by 3 allies 6289 | -8/Materials | Garrison activated, responded to threat 6366 | -8/Materials | Build established: Bothacker-Tank 6397 | -8/Materials | Identified exit to Garrison 6401 | -8/Materials | Entered Garrison 6401 | -8/Garrison | Accompanied by 2 allies 6577 | -8/Garrison | Triggered checkpoint 6620 | -8/Garrison | Core integrity fell below 50% 6674 | -8/Garrison | Destroyed 7 combat bots 6766 | -8/Garrison | Build established: Bothacker-Gunner 6822 | -8/Garrison | Discovered new exit (range 10) 6873 | -8/Garrison | Triggered checkpoint 6981 | -8/Garrison | Garrison Relay disabled 7079 | -8/Garrison | Triggered checkpoint 7146 | -8/Garrison | Discovered new exit (range 12) 7291 | -8/Garrison | Triggered checkpoint 7348 | -8/Garrison | Garrison Relay disabled 7521 | -8/Garrison | Triggered checkpoint 7606 | -8/Garrison | Expanded RIF knowledge: Hotswap 7643 | -8/Garrison | Discovered new exit (range 14) 7739 | -8/Garrison | Triggered checkpoint 7771 | -8/Garrison | Garrison Relay disabled 7776 | -8/Garrison | Lost 3 allies 7895 | -8/Garrison | Entered Factory 7895 | -7/Factory | Accompanied by 2 allies 7895 | -7/Factory | Evolved 2 slots: Utility x2 8228 | -7/Factory | Build established: Scavenger-Tank 8295 | -7/Factory | First assault squad dispatched 8615 | -7/Factory | Discovered new exit (range 7) 8628 | -7/Factory | Discovered new exit (range 16) 8728 | -7/Factory | Build established: Bothacker-Tank 8792 | -7/Factory | Discovered new exit (range 4) 9820 | -7/Factory | Lost 4 parts (2n1u1w) 10063 | -7/Factory | System corruption reached 10% 10118 | -7/Factory | Identified exit to Garrison 10125 | -7/Factory | Entered Garrison 10143 | -7/Garrison | Triggered checkpoint 10268 | -7/Garrison | Expanded RIF knowledge: Watcher Feeds 10413 | -7/Garrison | Build established: Bothacker-Mutant 10494 | -7/Garrison | Garrison Relay disabled 10721 | -7/Garrison | Triggered checkpoint 10767 | -7/Garrison | Triggered checkpoint 10792 | -7/Garrison | Garrison Relay disabled 10909 | -7/Garrison | Triggered checkpoint 10976 | -7/Garrison | Discovered new exit (range 10) 11103 | -7/Garrison | Garrison Relay disabled 11107 | -7/Garrison | Lost 3 allies 11179 | -7/Garrison | Rescued a captive Derelict 11190 | -7/Garrison | Rescued a captive Derelict 11279 | -7/Garrison | Triggered checkpoint 11348 | -7/Garrison | Learned Factory security intel 11428 | -7/Garrison | Found embedded Infiltrators 11439 | -7/Garrison | Discovered new exit (range 5) 11467 | -7/Garrison | Triggered checkpoint 11485 | -7/Garrison | Garrison Relay disabled 11519 | -7/Garrison | Build established: Bothacker-Gunner 11696 | -7/Garrison | H-XX Assembler disabled 11775 | -7/Garrison | Spotted B-75 Beast 11790 | -7/Garrison | Allies destroyed B-75 Beast 12024 | -7/Garrison | Garrison Relay disabled 12045 | -7/Garrison | Triggered checkpoint 12121 | -7/Garrison | Discovered new exit (range 3) 12185 | -7/Garrison | Entered Factory 12185 | -7/Factory | Accompanied by 3 allies 12585 | -7/Factory | First assault squad dispatched 12663 | -7/Factory | Discovered new exit (range 4) 12708 | -7/Factory | Entered Lower Caves 13107 | -7/Lower Caves | Learned location of 1 exit from Factory 13163 | -7/Lower Caves | Attracted the attention of an 0b10 checkpoint 13259 | -7/Lower Caves | Discovered new exit (range 12) 13276 | -7/Lower Caves | Entered another Lower Caves area 13491 | -7/Lower Caves | Core integrity fell below 50% 13573 | -7/Lower Caves | Attracted the attention of an 0b10 checkpoint 13692 | -7/Lower Caves | Learned Factory stockpile data 13729 | -7/Lower Caves | Released all parts (11) 13738 | -7/Lower Caves | Core integrity fell below 20% 13748 | -7/Lower Caves | Core destroyed Last Messages --------------- 13736_ Slammed into Wall. 13736_ Destabilizing: Core damaged (-7). 13737_ Slammed into Wall. 13737_ Destabilizing: Core damaged (-14). 13737_ Destabilizing: Core damaged (-35). 13738_ Slammed into Wall. 13738_ Destabilizing: System corrupted (+1). 13739_ Slammed into Wall. 13739_ Destabilizing: System corrupted (+1). 13740_ Slammed into Wall. 13741_ Destabilizing: System corrupted (+1). 13742_ Slammed into Wall. 13742_ Destabilizing: Core damaged (-7). 13743_ Slammed into Wall. 13743_ Destabilizing: System corrupted (+2). 13744_ Slammed into Wall. 13746_ Destabilizing: Core damaged (-7). 13747_ Slammed into Wall. 13748_ Destabilizing: Core damaged (-14). Map ----- +----------------------------------------------------+ | ## ##????????# ####""""# ##?????????????? | | ?# ##????????## #?????????????? | | ## ##?######## % #?????????????? | | # ### #""# %%% #???????????????????? | | # ## ! # ### #???????????????????? | | ## ## #????????????????????????? | | ?# ######## #????????????????????????? | | ## #### #??# #???##???????????????????? | | #### #??#########??? #??????????????????? | | ### #?????????????? #??????????????????? | | ##????????????? #??????????????????? | | ##???????????? #??????????????????? | | #########??## #??????????????????? | | #?## #??????????????????? | | "" #?# ???????????????????? | | """" " #### ### #????????????????????? | | "" "" #??# ## #???????#????????????? | | % """ ###### ## ##????? #????????????? | | " " """ ####?## # ##### #????????????? | | % " "" #???## #????????????? | | # "" ???# #????????????? | | ####### ?## !!! ####??????????????? | | ??????# # ==!! ##????????????????? | | ??????# !]/=!^ #????????????????? | | ?????? ## !!*!|## ?????????? | | ????? ?## ## !@!]#? ??????? | | ???? ??##?## ;## #?# ### ???????? | | ??? ?????#;#;#??##??####???? ???????? | | ???# ?????####?????????????????#???????? | | ?????########????????????????????????????????????? | | ?????????????????????????????????????????????????? | | ?????????????????????????????????????????????????? | | ?????????????????????????????????????????????????? | | ?????????????????????????????????????????????????? | | ?????????????????????????????????????????????????? | | ?????????????????????????????????????????????????? | | ?????????????????????????????????????????????????? | | ?????????????????????????????????????????????????? | | ?????????????????????????????????????????????????? | | ?????????????????????????????????????????????????? | | ?????????????????????????????????????????????????? | | ?????????????????????????????????????????????????? | | ?????????????????????????????????????????????????? | | ?????????????????????????????????????????????????? | | ?????????????????????????????????????????????????? | | | | | | | | | | | +----------------------------------------------------+ Best States ------------- Heat Dissipation 75 Coolant Potential 65 Energy Generation 25 Energy Capacity 350 Matter Stores 300 Matter Capacity 300 Sight Range 16 Terrain Scan Range 16 Terrain Scan Density 10 Armor Coverage 225 Evasion (%) 50 Recoil Reduction 4 Relay Coupler Types 4 Relay Coupler Value 111 Authchip Count 3 Item Schematics ----------------- None Robot Schematics ------------------ None Fabricated ------------ Nothing Repaired ---------- Imp. Ion Engine | 4% | -9/Materials Imp. Treads | 36% | -9/Materials Studied --------- Remote Datajack | -7/Factory | Hacked Alien Tech Used ----------------- None Achievements -------------- All Kinds Of Bad News Challenges ------------ None Game ------ Seed MasterDiametricMagmablaster Manual? 0 Play Time 01:17:39 Cumulative 263.3 hours Start 2025.11.14 @ 20:14:04 End 2025.11.16 @ 22:24:36 Sessions 3 Manual Loads 0 Difficulty Rogue Special Mode None Game No. 394 Rogue 392 Adventurer 0 Explorer 2 Win Type - Total 6 Types 4/0/1/1/0/0/0/0/0/0 Lore% 56 Gallery% 64 Achievement% 47 Wizard Run 0 Options --------- Layout 2 ASCII 0 Keyboard 1 Movement Arrows Keybinds 0 Fullscreen 1 Font 28/SmallcapsGlow Map View 50x49 Zoom Use 0% Tactical HUD 1 Map Filters NONE Filters NONE Steam 1 RUN: f0af04c1-ba7c-4fff-8aaf-a7043c21a1dc